fUSD/lending_fUSD_20240424
["ID","MTS","AMOUNT","RATE_DAILY","PERIOD"]
[323445134,1713991886333,-41852.14,0.00014246,2]
[323445135,1713991886344,-500.0,0.00014246,2]
[323445136,1713991886355,-500.0,0.00014246,2]
[323445137,1713991886366,-1433.62,0.00014246,2]
[323445138,1713991886377,-1096.33,0.00014246,2]
[323445139,1713991886388,-1204.62,0.00014246,2]
[323445140,1713991886399,-1145.17,0.00014246,2]
[323445141,1713991886409,-670.73,0.00014246,2]
[323445142,1713991886420,-818.13,0.00014246,2]
[323445143,1713991886431,-802.18,0.00014246,2]
[323445144,1713991886444,-27802.61,0.00014246,2]
[323445145,1713991886455,-926.5,0.00014246,2]
[323445146,1713991886465,-956.63,0.00014246,2]
[323445147,1713991886476,-1022.62,0.00014246,2]
[323445148,1713991886486,-1268.18,0.00014246,2]
[323445149,1713991886496,-807.35,0.00014246,2]
[323445150,1713991886507,-552.13,0.00014246,2]
[323445151,1713991886518,-745.21,0.00014246,2]
[323445152,1713991886529,-1518.01,0.00014246,2]
[323445153,1713991886539,-1304.69,0.00014246,2]
[323445154,1713991886549,-1258.54,0.00014246,2]
[323445155,1713991886561,-1273.21,0.00014246,2]
[323445156,1713991886572,-371.73621017,0.00014246,2]
[323445157,1713991886583,-855.16,0.00014246,2]
[323445158,1713991886593,-3556.77,0.00014246,2]
[323445159,1713991886603,-1147.95,0.00014246,2]
[323445160,1713991886613,-661.08,0.00014246,2]
[323445161,1713991886624,-616.17,0.00014246,2]
[323445162,1713991886634,-500.0,0.00014246,2]
[323445163,1713991886644,-711.37,0.00014246,2]
[323445164,1713991886654,-1278.88,0.00014246,2]
[323445165,1713991886665,-500.0,0.00014246,2]
[323445166,1713991886675,-630.07,0.00014246,2]
[323445167,1713991886688,-1352.75,0.00014246,2]
[323445168,1713991886698,-1942.44,0.00014246,2]
[323445169,1713991886708,-500.0,0.00014246,2]
[323445170,1713991886718,-1004.93,0.00014246,2]
[323445171,1713991886729,-500.0,0.00014246,2]
[323445172,1713991886739,-970.3,0.00014246,2]
[323445173,1713991886749,-607.85,0.00014246,2]
[323445174,1713991886760,-500.0,0.00014246,2]
[323445175,1713991886770,-500.0,0.00014246,2]
[323445176,1713991886780,-2785.8,0.00014246,2]
[323445177,1713991886792,-1408.5,0.00014246,2]
[323445178,1713991886802,-2017.97,0.00014246,2]
[323445179,1713991886813,-1253.8,0.00014246,2]
[323445180,1713991886822,-2871.24,0.00014246,2]
[323445181,1713991886833,-500.0,0.00014246,2]
[323445182,1713991886843,-556.02,0.00014246,2]
[323445183,1713991886853,-1364.69,0.00014246,2]
[323445184,1713991886863,-1040.15,0.00014246,2]
[323445185,1713991886873,-500.0,0.00014246,2]
[323445186,1713991886883,-2840.23,0.00014246,2]
[323445187,1713991886894,-2059.51,0.00014246,2]
[323445188,1713991886904,-500.0,0.00014246,2]
[323445189,1713991886915,-715.7,0.00014246,2]
[323445190,1713991886925,-500.0,0.00014246,2]
[323445191,1713991886938,-1548.88,0.00014246,2]
[323445192,1713991886947,-544.33,0.00014246,2]
[323445193,1713991886958,-1817.33,0.00014246,2]
[323445194,1713991886969,-987.87,0.00014246,2]
[323445195,1713991886980,-616.24,0.00014246,2]
[323445196,1713991886990,-3875.02,0.00014246,2]
[323445197,1713991887000,-500.0,0.00014246,2]
[323445198,1713991887009,-1544.0,0.00014246,2]
[323445199,1713991887020,-1231.43,0.00014246,2]
[323445200,1713991887030,-3734.67,0.00014246,2]
[323445201,1713991887040,-2789.34,0.00014246,2]
[323445202,1713991887050,-8238.28,0.00014246,2]
[323445203,1713991887061,-1407.11,0.00014246,2]
[323445204,1713991887071,-500.0,0.00014246,2]
[323445205,1713991887081,-1307.71,0.00014246,2]
[323445206,1713991887091,-1027.0,0.00014246,2]
[323445207,1713991887101,-835.89,0.00014246,2]
[323445208,1713991887112,-1276.67,0.00014246,2]
[323445209,1713991887122,-500.0,0.00014246,2]
[323445210,1713991887133,-1932.45,0.00014246,2]
[323445211,1713991887144,-1468.72,0.00014246,2]
[323445212,1713991887154,-616.01273432,0.00014246,2]
[323445213,1713991887165,-713.89,0.00014246,2]
[323445214,1713991887175,-846.41,0.00014246,2]
[323445215,1713991887185,-8052.86,0.00014246,2]
[323445216,1713991887196,-500.0,0.00014246,2]
[323445217,1713991887206,-677.71,0.00014246,2]
[323445218,1713991887216,-250.0,0.00014247,2]
[323445219,1713991887227,-304.0,0.0001426,2]
[323445220,1713991887237,-1000.0,0.00014273,2]
[323445221,1713991887247,-1000.0,0.00014377,2]
[323445222,1713991887257,-1924.74,0.0001452,2]
[323445223,1713991887267,-500.0,0.0001452,2]
[323445224,1713991887278,-1035.0,0.0001452,2]
[323445225,1713991887287,-647.06,0.0001452,2]
[323445226,1713991887298,-840.66,0.0001452,2]
[323445227,1713991887311,-805.34,0.0001452,2]
[323445228,1713991887321,-856.22,0.0001452,2]
[323445229,1713991887331,-500.0,0.0001452,2]
[323445230,1713991887342,-313.94180009,0.0001452,2]
[323445231,1713991887353,-500.0,0.0001452,2]
[323445232,1713991887363,-615.27,0.0001452,2]
[323445233,1713991887373,-574.89,0.0001452,2]
[323445234,1713991887383,-591.14,0.0001452,2]
[323445235,1713991887395,-506.23,0.0001452,2]
[323445236,1713991887406,-859.61,0.0001452,2]
[323445237,1713991887417,-842.34,0.0001452,2]
[323445238,1713991887427,-548.43,0.0001452,2]
[323445239,1713991887438,-500.0,0.0001452,2]
[323445240,1713991887791,-500.0,0.0001452,2]
[323445241,1713991887821,-665.53,0.0001452,2]
[323445242,1713991887833,-500.0,0.0001452,2]
[323445243,1713991887842,-500.0,0.0001452,2]
[323445244,1713991887851,-736.69,0.0001452,2]
[323445245,1713991887860,-826.15,0.0001452,2]
[323445246,1713991887869,-500.0,0.0001452,2]
[323445247,1713991887878,-500.0,0.0001452,2]
[323445248,1713991887888,-807.78,0.0001452,2]
[323445249,1713991887897,-705.7,0.0001452,2]
[323445250,1713991887906,-1307.93,0.0001452,2]
[323445251,1713991887915,-546.95,0.0001452,2]
[323445252,1713991887924,-1642.17,0.0001452,2]
[323445253,1713991887933,-805.45,0.0001452,2]
[323445254,1713991887944,-500.0,0.0001452,2]
[323445255,1713991887953,-1911.86,0.0001452,2]
[323445256,1713991887962,-1296.39,0.0001452,2]
[323445257,1713991887972,-690.75,0.0001452,2]
[323445258,1713991887981,-628.86067371,0.0001452,2]
[323445259,1713991887991,-857.69,0.0001452,2]
[323445260,1713991888001,-2921.56,0.0001452,2]
[323445261,1713991888010,-1941.91,0.0001452,2]
[323445262,1713991888019,-936.37,0.0001452,2]
[323445263,1713991888029,-500.0,0.0001452,2]
[323445264,1713991888039,-1967.54,0.0001452,2]
[323445265,1713991888048,-500.0,0.0001452,2]
[323445266,1713991888058,-3113.04,0.0001452,2]
[323445267,1713991888067,-621.85,0.0001452,2]
[323445268,1713991888077,-611.57,0.0001452,2]
[323445269,1713991888088,-2015.75,0.0001452,2]
[323445270,1713991888097,-1275.63,0.0001452,2]
[323445271,1713991888107,-696.19,0.0001452,2]
[323445272,1713991888116,-1820.17,0.0001452,2]
[323445273,1713991888126,-1464.99,0.0001452,2]
[323445274,1713991888135,-947.66,0.0001452,2]
[323445275,1713991888144,-2801.3,0.0001452,2]
[323445276,1713991888153,-41852.14,0.0001452,2]
[323445277,1713991888163,-500.0,0.0001452,2]
[323445278,1713991888172,-500.0,0.0001452,2]
[323445279,1713991888182,-1433.62,0.0001452,2]
[323445280,1713991888192,-1096.33,0.0001452,2]
[323445281,1713991888201,-1204.62,0.0001452,2]
[323445282,1713991888211,-1145.17,0.0001452,2]
[323445283,1713991888223,-670.73,0.0001452,2]
[323445284,1713991888263,-818.13,0.0001452,2]
[323445285,1713991888273,-802.18,0.0001452,2]
[323445286,1713991888283,-27802.61,0.0001452,2]
[323445287,1713991888293,-926.5,0.0001452,2]
[323445288,1713991888304,-956.63,0.0001452,2]
[323445289,1713991888316,-1022.62,0.0001452,2]
[323445290,1713991888325,-1268.18,0.0001452,2]
[323445291,1713991888335,-807.35,0.0001452,2]
[323445292,1713991888345,-552.13,0.0001452,2]
[323445293,1713991888356,-745.21,0.0001452,2]
[323445294,1713991888366,-1518.01,0.0001452,2]
[323445295,1713991888377,-1304.69,0.0001452,2]
[323445296,1713991888387,-1258.54,0.0001452,2]
[323445297,1713991888399,-1273.21,0.0001452,2]
[323445298,1713991888409,-855.16,0.0001452,2]
[323445299,1713991888419,-3556.77,0.0001452,2]
[323445300,1713991888429,-1147.95,0.0001452,2]
[323445301,1713991888440,-661.08,0.0001452,2]
[323445302,1713991888450,-616.17,0.0001452,2]
[323445303,1713991888460,-500.0,0.0001452,2]
[323445304,1713991888470,-711.37,0.0001452,2]
[323445305,1713991888480,-1278.88,0.0001452,2]
[323445306,1713991888491,-500.0,0.0001452,2]
[323445307,1713991888502,-630.07,0.0001452,2]
[323445308,1713991888512,-1352.75,0.0001452,2]
[323445309,1713991888522,-500.0,0.0001452,2]
[323445310,1713991888532,-1942.44,0.0001452,2]
[323445311,1713991888542,-1004.93,0.0001452,2]
[323445312,1713991888552,-500.0,0.0001452,2]
[323445313,1713991888562,-970.3,0.0001452,2]
[323445314,1713991888571,-607.85,0.0001452,2]
[323445315,1713991888582,-370.65809066,0.0001452,2]
[323445316,1713991888592,-500.0,0.0001452,2]
[323445317,1713991888602,-2785.8,0.0001452,2]
[323445318,1713991888612,-1408.5,0.0001452,2]
[323445319,1713991888623,-2017.97,0.0001452,2]
[323445320,1713991888633,-1253.8,0.0001452,2]
[323445321,1713991888644,-2871.24,0.0001452,2]
[323445322,1713991888654,-500.0,0.0001452,2]
[323445323,1713991888664,-556.02,0.0001452,2]
[323445324,1713991888675,-1364.69,0.0001452,2]
[323445325,1713991888686,-1040.15,0.0001452,2]
[323445326,1713991888697,-500.0,0.0001452,2]
[323445327,1713991888707,-2059.51,0.0001452,2]
[323445328,1713991888717,-2840.23,0.0001452,2]
[323445329,1713991888728,-529.08150614,0.0001452,2]
[323445330,1713991888738,-715.7,0.0001452,2]
[323445331,1713991888748,-500.0,0.0001452,2]
[323445332,1713991888759,-1548.88,0.0001452,2]
[323445333,1713991888770,-544.33,0.0001452,2]
[323445334,1713991888780,-1817.33,0.0001452,2]
[323445335,1713991888790,-987.87,0.0001452,2]
[323445336,1713991888800,-616.24,0.0001452,2]
[323445337,1713991888810,-3875.02,0.0001452,2]
[323445338,1713991888819,-500.0,0.0001452,2]
[323445339,1713991888829,-1544.0,0.0001452,2]
[323445340,1713991888841,-1231.43,0.0001452,2]
[323445341,1713991888851,-3734.67,0.0001452,2]
[323445342,1713991888860,-2789.34,0.0001452,2]
[323445343,1713991888870,-8238.28,0.0001452,2]
[323445344,1713991888880,-1407.11,0.0001452,2]
[323445345,1713991888890,-500.0,0.0001452,2]
[323445346,1713991888899,-1307.71,0.0001452,2]
[323445347,1713991888909,-1027.0,0.0001452,2]
[323445348,1713991888919,-835.89,0.0001452,2]
[323445349,1713991888928,-1276.67,0.0001452,2]
[323445350,1713991888938,-500.0,0.0001452,2]
[323445351,1713991888948,-1932.45,0.0001452,2]
[323445352,1713991888958,-1468.72,0.0001452,2]
[323445353,1713991888968,-713.89,0.0001452,2]
[323445354,1713991888978,-846.41,0.0001452,2]
[323445355,1713991888988,-8052.86,0.0001452,2]
[323445356,1713991888997,-500.0,0.0001452,2]
[323445357,1713991889006,-677.71,0.0001452,2]
[323445358,1713991889016,-37702.0,0.0001453,2]
[323445359,1713991889025,-301.6,0.00014545,2]
[323445360,1713991889035,-208.61,0.00014586,2]
[323445361,1713991889044,-18019.49979897,0.000147,2]
[323445362,1713991889054,-4178.44,0.00014725,2]
[323445363,1713991889064,-1003.2,0.0001476,2]
[323445364,1713991889073,-1924.74,0.00014794,2]
[323445365,1713991889083,-500.0,0.00014794,2]
[323445366,1713991889093,-1035.0,0.00014794,2]
[323445367,1713991889103,-647.06,0.00014794,2]
[323445368,1713991889112,-840.66,0.00014794,2]
[323445369,1713991889121,-805.34,0.00014794,2]
[323445370,1713991889130,-856.22,0.00014794,2]
[323445371,1713991889139,-500.0,0.00014794,2]
[323445372,1713991889149,-500.0,0.00014794,2]
[323445373,1713991889159,-615.27,0.00014794,2]
[323445374,1713991889168,-574.89,0.00014794,2]
[323445375,1713991889177,-591.14,0.00014794,2]
[323445376,1713991889189,-506.23,0.00014794,2]
[323445377,1713991889198,-859.61,0.00014794,2]
[323445378,1713991889208,-842.34,0.00014794,2]
[323445379,1713991889218,-548.43,0.00014794,2]
[323445380,1713991889227,-500.0,0.00014794,2]
[323445381,1713991889237,-500.0,0.00014794,2]
[323445382,1713991889247,-665.53,0.00014794,2]
[323445383,1713991889257,-500.0,0.00014794,2]
[323445384,1713991889268,-500.0,0.00014794,2]
[323445385,1713991889278,-736.69,0.00014794,2]
[323445386,1713991889288,-826.15,0.00014794,2]
[323445387,1713991889298,-500.0,0.00014794,2]
[323445388,1713991889312,-500.0,0.00014794,2]
[323445389,1713991889322,-807.78,0.00014794,2]
[323445390,1713991889332,-705.7,0.00014794,2]
[323445391,1713991889342,-1307.93,0.00014794,2]
[323445392,1713991889353,-546.95,0.00014794,2]
[323445393,1713991889363,-1642.17,0.00014794,2]
[323445394,1713991889373,-805.45,0.00014794,2]
[323445395,1713991889383,-500.0,0.00014794,2]
[323445396,1713991889393,-1911.86,0.00014794,2]
[323445397,1713991889403,-1296.39,0.00014794,2]
[323445398,1713991889413,-690.75,0.00014794,2]
[323445399,1713991889423,-857.69,0.00014794,2]
[323445400,1713991889433,-2921.56,0.00014794,2]
[323445401,1713991889444,-1941.91,0.00014794,2]
[323445402,1713991889453,-936.37,0.00014794,2]
[323445403,1713991889462,-500.0,0.00014794,2]
[323445404,1713991889472,-1967.54,0.00014794,2]
[323445405,1713991889481,-500.0,0.00014794,2]
[323445406,1713991889490,-3113.04,0.00014794,2]
[323445407,1713991889500,-621.85,0.00014794,2]
[323445408,1713991889509,-611.57,0.00014794,2]
[323445409,1713991889518,-2015.75,0.00014794,2]
[323445410,1713991889528,-1275.63,0.00014794,2]
[323445411,1713991889537,-696.19,0.00014794,2]
[323445412,1713991889546,-1820.17,0.00014794,2]
[323445413,1713991889555,-1464.99,0.00014794,2]
[323445414,1713991889565,-947.66,0.00014794,2]
[323445415,1713991889574,-2801.3,0.00014794,2]
[323445416,1713991889583,-41852.14,0.00014794,2]
[323445417,1713991889594,-500.0,0.00014794,2]
[323445418,1713991889604,-500.0,0.00014794,2]
[323445419,1713991889614,-1433.62,0.00014794,2]
[323445420,1713991889623,-1096.33,0.00014794,2]
[323445421,1713991889633,-1204.62,0.00014794,2]
[323445422,1713991889642,-670.73,0.00014794,2]
[323445423,1713991889652,-1145.17,0.00014794,2]
[323445424,1713991889661,-818.13,0.00014794,2]
[323445425,1713991889671,-802.18,0.00014794,2]
[323445426,1713991889681,-27802.61,0.00014794,2]
[323445427,1713991889691,-926.5,0.00014794,2]
[323445428,1713991889700,-956.63,0.00014794,2]
[323445429,1713991889710,-1022.62,0.00014794,2]
[323445430,1713991889720,-807.35,0.00014794,2]
[323445431,1713991889730,-1268.18,0.00014794,2]
[323445432,1713991889739,-552.13,0.00014794,2]
[323445433,1713991889750,-745.21,0.00014794,2]
[323445434,1713991889759,-1518.01,0.00014794,2]
[323445435,1713991889769,-1304.69,0.00014794,2]
[323445436,1713991889779,-1258.54,0.00014794,2]
[323445437,1713991889789,-1273.21,0.00014794,2]
[323445438,1713991889798,-855.16,0.00014794,2]
[323445439,1713991889809,-3556.77,0.00014794,2]
[323445440,1713991889819,-661.08,0.00014794,2]
[323445441,1713991889828,-1147.95,0.00014794,2]
[323445442,1713991889838,-616.17,0.00014794,2]
[323445443,1713991889848,-500.0,0.00014794,2]
[323445444,1713991889857,-711.37,0.00014794,2]
[323445445,1713991889867,-1278.88,0.00014794,2]
[323445446,1713991889877,-500.0,0.00014794,2]
[323445447,1713991889887,-630.07,0.00014794,2]
[323445448,1713991889896,-1352.75,0.00014794,2]
[323445449,1713991889906,-1942.44,0.00014794,2]
[323445450,1713991889916,-500.0,0.00014794,2]
[323445451,1713991889925,-1004.93,0.00014794,2]
[323445452,1713991889935,-500.0,0.00014794,2]
[323445453,1713991889946,-970.3,0.00014794,2]
[323445454,1713991889956,-607.85,0.00014794,2]
[323445455,1713991889965,-500.0,0.00014794,2]
[323445456,1713991889976,-2785.8,0.00014794,2]
[323445457,1713991889986,-1408.5,0.00014794,2]
[323445458,1713991889996,-2017.97,0.00014794,2]
[323445459,1713991890006,-1253.8,0.00014794,2]
[323445460,1713991890016,-2871.24,0.00014794,2]
[323445461,1713991890027,-500.0,0.00014794,2]
[323445462,1713991890037,-556.02,0.00014794,2]
[323445463,1713991890047,-1364.69,0.00014794,2]
[323445464,1713991890057,-1040.15,0.00014794,2]
[323445465,1713991890067,-500.0,0.00014794,2]
[323445466,1713991890078,-2059.51,0.00014794,2]
[323445467,1713991890089,-2840.23,0.00014794,2]
[323445468,1713991890099,-715.7,0.00014794,2]
[323445469,1713991890109,-303.26532679,0.00014794,2]
[323445470,1713991890120,-1548.88,0.00014794,2]
[323445471,1713991890131,-544.33,0.00014794,2]
[323445472,1713991890142,-1817.33,0.00014794,2]
[323445473,1713991890153,-987.87,0.00014794,2]
[323445474,1713991890163,-616.24,0.00014794,2]
[323445475,1713991890174,-3875.02,0.00014794,2]
[323445476,1713991890184,-500.0,0.00014794,2]
[323445477,1713991890195,-1544.0,0.00014794,2]
[323445478,1713991890205,-1231.43,0.00014794,2]
[323445479,1713991890215,-3734.67,0.00014794,2]
[323445480,1713991890226,-2789.34,0.00014794,2]
[323445481,1713991890236,-8238.28,0.00014794,2]
[323445482,1713991890246,-1407.11,0.00014794,2]
[323445483,1713991890256,-500.0,0.00014794,2]
[323445484,1713991890265,-1307.71,0.00014794,2]
[323445485,1713991890448,-1027.0,0.00014794,2]
[323445486,1713991890458,-835.89,0.00014794,2]
[323445487,1713991890468,-1276.67,0.00014794,2]
[323445488,1713991890478,-500.0,0.00014794,2]
[323445489,1713991890488,-1932.45,0.00014794,2]
[323445490,1713991890497,-1468.72,0.00014794,2]
[323445491,1713991890507,-713.89,0.00014794,2]
[323445492,1713991890516,-846.41,0.00014794,2]
[323445493,1713991890525,-8052.86,0.00014794,2]
[323445494,1713991890534,-500.0,0.00014794,2]
[323445495,1713991890544,-677.71,0.00014794,2]
[323445496,1713991890554,-350.0,0.00014795,2]
[323445497,1713991890563,-516.0,0.00014849,2]
[323445498,1713991890573,-1000.0,0.00014849,2]
[323445499,1713991890582,-368.07,0.00014875,2]
[323445500,1713991890591,-1626.0,0.00014877,2]
[323445501,1713991890601,-187.16896702,0.000149,2]
[323445502,1713991890610,-23163.72847273,0.000149,2]
[323445503,1713991890620,-209.10169957,0.000149,2]
[323445504,1713991890630,-209.10169957,0.000149,2]
[323445505,1713991890640,-209.10169957,0.000149,2]
[323445506,1713991890649,-304.0,0.0001493,2]
[323445507,1713991890659,-4471.26884943,0.00015,2]
[323445508,1713991890669,-155.0,0.00015,2]
[323445509,1713991890679,-256.80888125,0.00015,2]
[323445510,1713991890690,-200.0,0.00015,2]
[323445511,1713991890700,-2133.30785553,0.00015,2]
[323445512,1713991890709,-1000.0,0.00015,2]
[323445513,1713991890719,-8588.94544032,0.00015,2]
[323445514,1713991890728,-526.0,0.00015,2]
[323445515,1713991890738,-1000.0,0.00015,2]
[323445516,1713991890747,-649292.50509751,0.00015,2]
[323445517,1713991890757,-12388.50251264,0.00015,2]
[323445518,1713991890767,-1088.6,0.00015,3]
[323445519,1713991890778,-938.6,0.00015,3]
[323445520,1713991890788,-922.7,0.00015,3]
[323445521,1713991890797,-155.12324785,0.00015,2]
[323445522,1713991890807,-2021.0,0.00015,2]
[323445523,1713991890817,-151411.07582767,0.00015,2]
[323445524,1713991890827,-150853.41291693,0.00015,3]
[323445525,1713991890836,-500.0,0.00015,2]
[323445526,1713991890847,-23091.72151835,0.00015,3]
[323445527,1713991890857,-159412.24455837,0.00015,2]
[323445528,1713991890866,-1911.14993712,0.00015,2]
[323445529,1713991890876,-2289.11504701,0.00015,2]
[323445530,1713991890886,-200.0,0.00015,7]
[323445531,1713991890895,-1556.0,0.00015,2]
[323445532,1713991890905,-3427.00788913,0.00015,2]
[323445533,1713991890914,-12356.0,0.00015,2]
[323445534,1713991890925,-1003.2,0.00015,2]
[323445535,1713991890935,-301.6,0.00015,2]
[323445536,1713991890946,-275.24,0.0001502,2]
[323445537,1713991890955,-2971.83922248,0.00015046,2]
[323445538,1713991890965,-1924.74,0.00015068,2]
[323445539,1713991890975,-500.0,0.00015068,2]
[323445540,1713991890985,-1035.0,0.00015068,2]
[323445541,1713991890994,-647.06,0.00015068,2]
[323445542,1713991891004,-840.66,0.00015068,2]
[323445543,1713991891014,-805.34,0.00015068,2]
[323445544,1713991891024,-856.22,0.00015068,2]
[323445545,1713991891034,-500.0,0.00015068,2]
[323445546,1713991891044,-500.0,0.00015068,2]
[323445547,1713991891054,-615.27,0.00015068,2]
[323445548,1713991891063,-574.89,0.00015068,2]
[323445549,1713991891073,-591.14,0.00015068,2]
[323445550,1713991891083,-506.23,0.00015068,2]
[323445551,1713991891093,-859.61,0.00015068,2]
[323445552,1713991891103,-842.34,0.00015068,2]
[323445553,1713991891112,-548.43,0.00015068,2]
[323445554,1713991891122,-500.0,0.00015068,2]
[323445555,1713991891131,-500.0,0.00015068,2]
[323445556,1713991891141,-665.53,0.00015068,2]
[323445557,1713991891150,-500.0,0.00015068,2]
[323445558,1713991891160,-500.0,0.00015068,2]
[323445559,1713991891170,-736.69,0.00015068,2]
[323445560,1713991891179,-826.15,0.00015068,2]
[323445561,1713991891190,-473.53880559,0.00015068,2]
[323445562,1713991891199,-500.0,0.00015068,2]
[323445563,1713991891209,-807.78,0.00015068,2]
[323445564,1713991891218,-705.7,0.00015068,2]
[323445565,1713991891228,-1307.93,0.00015068,2]
[323445566,1713991891237,-546.95,0.00015068,2]
[323445567,1713991891247,-1642.17,0.00015068,2]
[323445568,1713991891256,-805.45,0.00015068,2]
[323445569,1713991891265,-500.0,0.00015068,2]
[323445570,1713991891275,-1911.86,0.00015068,2]
[323445571,1713991891285,-1296.39,0.00015068,2]
[323445572,1713991891295,-690.75,0.00015068,2]
[323445573,1713991891305,-857.69,0.00015068,2]
[323445574,1713991891316,-2921.56,0.00015068,2]
[323445575,1713991891325,-1941.91,0.00015068,2]
[323445576,1713991891335,-936.37,0.00015068,2]
[323445577,1713991891344,-500.0,0.00015068,2]
[323445578,1713991891354,-1967.54,0.00015068,2]
[323445579,1713991891364,-500.0,0.00015068,2]
[323445580,1713991891373,-3113.04,0.00015068,2]
[323445581,1713991891384,-621.85,0.00015068,2]
[323445582,1713991891395,-611.57,0.00015068,2]
[323445583,1713991891405,-2015.75,0.00015068,2]
[323445584,1713991891415,-1275.63,0.00015068,2]
[323445585,1713991891425,-696.19,0.00015068,2]
[323445586,1713991891435,-1820.17,0.00015068,2]
[323445587,1713991891447,-1464.99,0.00015068,2]
[323445588,1713991891457,-947.66,0.00015068,2]
[323445589,1713991891467,-2801.3,0.00015068,2]
[323445590,1713991891476,-41852.14,0.00015068,2]
[323445591,1713991891487,-500.0,0.00015068,2]
[323445592,1713991891496,-255.33181711,0.00015068,2]
[323445593,1713991891506,-1433.62,0.00015068,2]
[323445594,1713991891516,-1096.33,0.00015068,2]
[323445595,1713991891526,-1204.62,0.00015068,2]
[323445596,1713991891535,-670.73,0.00015068,2]
[323445597,1713991891545,-1145.17,0.00015068,2]
[323445598,1713991891555,-818.13,0.00015068,2]
[323445599,1713991891564,-802.18,0.00015068,2]
[323445600,1713991891574,-27802.61,0.00015068,2]
[323445601,1713991891584,-926.5,0.00015068,2]
[323445602,1713991891594,-956.63,0.00015068,2]
[323445603,1713991891604,-1022.62,0.00015068,2]
[323445604,1713991891613,-807.35,0.00015068,2]
[323445605,1713991891622,-1268.18,0.00015068,2]
[323445606,1713991891632,-552.13,0.00015068,2]
[323445607,1713991891641,-745.21,0.00015068,2]
[323445608,1713991891651,-1518.01,0.00015068,2]
[323445609,1713991891661,-1304.69,0.00015068,2]
[323445610,1713991891671,-1258.54,0.00015068,2]
[323445611,1713991891681,-1273.21,0.00015068,2]
[323445612,1713991891692,-855.16,0.00015068,2]
[323445613,1713991891702,-3556.77,0.00015068,2]
[323445614,1713991891712,-661.08,0.00015068,2]
[323445615,1713991891722,-1147.95,0.00015068,2]
[323445616,1713991891732,-616.17,0.00015068,2]
[323445617,1713991891741,-500.0,0.00015068,2]
[323445618,1713991891751,-711.37,0.00015068,2]
[323445619,1713991891762,-1278.88,0.00015068,2]
[323445620,1713991891772,-500.0,0.00015068,2]
[323445621,1713991891782,-630.07,0.00015068,2]
[323445622,1713991891792,-1352.75,0.00015068,2]
[323445623,1713991891802,-1942.44,0.00015068,2]
[323445624,1713991891812,-500.0,0.00015068,2]
[323445625,1713991891822,-1004.93,0.00015068,2]
[323445626,1713991891833,-500.0,0.00015068,2]
[323445627,1713991891843,-970.3,0.00015068,2]
[323445628,1713991891853,-607.85,0.00015068,2]
[323445629,1713991891863,-500.0,0.00015068,2]
[323445630,1713991891874,-2785.8,0.00015068,2]
[323445631,1713991891883,-1408.5,0.00015068,2]
[323445632,1713991891893,-2017.97,0.00015068,2]
[323445633,1713991891903,-1253.8,0.00015068,2]